fUSD/lending_fUSD_20250820
["ID","MTS","AMOUNT","RATE_DAILY","PERIOD"]
[380346489,1755699545732,-400.0,0.0003041,120]
[380346490,1755699545792,-1148.26,0.0003041,120]
[380346491,1755699545851,-400.0,0.0003041,120]
[380346492,1755699545913,-400.0,0.0003041,120]
[380346493,1755699545976,-992.16,0.0003041,120]
[380346494,1755699546040,-1643.12,0.0003041,120]
[380346495,1755699546101,-494.04,0.0003041,120]
[380346496,1755699546162,-400.0,0.0003041,120]
[380346497,1755699546227,-400.0,0.0003041,120]
[380346498,1755699546289,-1864.89,0.0003041,120]
[380346499,1755699546351,-1865.5,0.0003041,120]
[380346500,1755699546413,-812.14,0.0003041,120]
[380346501,1755699546479,-1905.64,0.0003041,120]
[380346502,1755699546540,-650.75,0.0003041,120]
[380346503,1755699546608,-963.7,0.0003041,120]
[380346504,1755699546672,-1485.37,0.0003041,120]
[380346505,1755699546731,-400.0,0.0003041,120]
[380346506,1755699546786,-1307.33,0.0003041,120]
[380346507,1755699546845,-1506.15,0.0003041,120]
[380346508,1755699546909,-1866.44,0.0003041,120]
[380346509,1755699546968,-1736.56,0.0003041,120]
[380346510,1755699547031,-1120.37,0.0003041,120]
[380346511,1755699547092,-3442.43,0.0003041,120]
[380346512,1755699547154,-769.82,0.0003041,120]
[380346513,1755699547213,-1025.05,0.0003041,120]
[380346514,1755699547272,-1071.13,0.0003041,120]
[380346515,1755699547329,-400.0,0.0003041,120]
[380346516,1755699547386,-400.0,0.0003041,120]
[380346517,1755699547449,-1057.26,0.0003041,120]
[380346518,1755699547508,-400.0,0.0003041,120]
[380346519,1755699547561,-400.0,0.0003041,120]
[380346520,1755699547614,-400.0,0.0003041,120]
[380346521,1755699547671,-1513.72,0.0003041,120]
[380346522,1755699547729,-1598.66,0.0003041,120]
[380346523,1755699547792,-1397.58,0.0003041,120]
[380346524,1755699547847,-411.97,0.0003041,120]
[380346525,1755699547911,-1966.43,0.0003041,120]
[380346526,1755699547971,-653.77,0.0003041,120]
[380346527,1755699548029,-1320.71,0.0003041,120]
[380346528,1755699548089,-400.0,0.0003041,120]
[380346529,1755699548148,-409.4,0.0003041,120]
[380346530,1755699548210,-1248.14,0.0003041,120]
[380346531,1755699548266,-1290.51,0.0003041,120]
[380346532,1755699548321,-1117.41,0.0003041,120]
[380346533,1755699548379,-1370.09,0.0003041,120]
[380346534,1755699548438,-1124.29,0.0003041,120]
[380346535,1755699548496,-400.0,0.0003041,120]
[380346536,1755699548556,-914.84,0.0003041,120]
[380346537,1755699548615,-400.0,0.0003041,120]
[380346538,1755699548675,-400.0,0.0003041,120]
[380346539,1755699548734,-1343.98,0.0003041,120]
[380346540,1755699548793,-438.47,0.0003041,120]
[380346541,1755699548856,-1585.21,0.0003041,120]
[380346542,1755699549230,-400.0,0.0003041,120]
[380346543,1755699549290,-412.07,0.0003041,120]
[380346544,1755699549350,-2466.24,0.0003041,120]
[380346545,1755699549409,-400.0,0.0003041,120]
[380346546,1755699549468,-400.0,0.0003041,120]
[380346547,1755699549523,-400.0,0.0003041,120]
[380346548,1755699549583,-400.0,0.0003041,120]
[380346549,1755699549644,-754.62,0.0003041,120]
[380346550,1755699549708,-2628.67,0.0003041,120]
[380346551,1755699549768,-541.78,0.0003041,120]
[380346552,1755699549825,-1261.38,0.0003041,120]
[380346553,1755699549885,-400.0,0.0003041,120]
[380346554,1755699549950,-461.81,0.0003041,120]
[380346555,1755699550007,-400.0,0.0003041,120]
[380346556,1755699550066,-400.0,0.0003041,120]
[380346557,1755699550127,-477.49,0.0003041,120]
[380346558,1755699550188,-1637.48,0.0003041,120]
[380346559,1755699550249,-1867.49,0.0003041,120]
[380346560,1755699550304,-955.09,0.0003041,120]
[380346561,1755699550362,-1071.54,0.0003041,120]
[380346562,1755699550414,-1873.0,0.0003041,120]
[380346563,1755699550468,-1452.83,0.0003041,120]
[380346564,1755699550522,-5280.76,0.0003041,120]
[380346565,1755699550576,-574.89,0.0003041,120]
[380346566,1755699550633,-400.0,0.0003041,120]
[380346567,1755699550687,-541.3,0.0003041,120]
[380346568,1755699550742,-400.0,0.0003041,90]
[380346569,1755699550798,-400.0,0.0003041,120]
[380346570,1755699550854,-4852.14,0.0003041,120]
[380346571,1755699550910,-1141.67,0.0003041,120]
[380346572,1755699550966,-810.82,0.0003041,120]
[380346573,1755699551026,-1627.34,0.0003041,120]
[380346574,1755699551081,-400.0,0.0003041,120]
[380346575,1755699551135,-4715.82,0.0003041,120]
[380346576,1755699551191,-613.28,0.0003041,120]
[380346577,1755699551247,-400.0,0.0003041,120]
[380346578,1755699551307,-1399.24,0.0003041,120]
[380346579,1755699551369,-1295.65,0.0003041,120]
[380346580,1755699551429,-1703.41,0.0003041,120]
[380346581,1755699551490,-1252.65,0.0003041,120]
[380346582,1755699551545,-962.12,0.0003041,120]
[380346583,1755699551603,-464.40814742,0.0003041,120]
[380346584,1755699551663,-995.58,0.0003041,120]
[380346585,1755699551719,-569.33,0.0003041,120]
[380346586,1755699551773,-1241.65,0.0003041,120]
[380346587,1755699551846,-400.0,0.0003041,120]
[380346588,1755699551903,-1131.38,0.0003041,120]
[380346589,1755699551960,-1675.24,0.0003041,120]
[380346590,1755699552014,-400.0,0.0003041,120]
[380346591,1755699552071,-400.0,0.0003041,120]
[380346592,1755699552130,-2254.88,0.0003041,120]
[380346593,1755699552186,-400.0,0.0003041,120]
[380346594,1755699552248,-400.0,0.0003041,120]
[380346595,1755699552305,-1114.65,0.0003041,120]
[380346596,1755699552366,-1205.52,0.0003041,120]
[380346597,1755699552424,-8374.51,0.0003041,120]
[380346598,1755699552479,-3756.66,0.0003041,120]
[380346599,1755699552533,-505.87,0.0003041,120]
[380346600,1755699552588,-1156.89,0.0003041,120]
[380346601,1755699552650,-939.95,0.0003041,120]
[380346602,1755699552709,-463.45,0.0003041,120]
[380346603,1755699552761,-400.0,0.0003041,120]
[380346604,1755699552814,-400.0,0.0003041,120]
[380346605,1755699552867,-1159.2,0.0003041,120]
[380346606,1755699552925,-955.55,0.0003041,120]
[380346607,1755699552981,-1629.01,0.0003041,120]
[380346608,1755699553040,-1161.76,0.0003041,120]
[380346609,1755699553098,-1559.24,0.0003041,120]
[380346610,1755699553153,-1207.3,0.0003041,120]
[380346611,1755699553209,-3358.34,0.0003041,120]
[380346612,1755699553275,-16334.8,0.0003041,120]
[380346613,1755699553332,-510.54,0.0003041,120]
[380346614,1755699553390,-400.0,0.0003041,120]
[380346615,1755699553449,-4537.18,0.0003041,120]
[380346616,1755699553506,-1415.74,0.0003041,120]
[380346617,1755699553560,-763.36,0.0003041,120]
[380346618,1755699553614,-400.0,0.0003041,120]
[380346619,1755699553670,-400.0,0.0003041,120]
[380346620,1755699553730,-444.28,0.0003041,120]
[380346621,1755699553787,-3361.69,0.0003041,120]
[380346622,1755699553845,-1533.13,0.0003041,120]
[380346623,1755699553901,-400.0,0.0003041,120]
[380346624,1755699553964,-400.0,0.0003041,120]
[380346625,1755699554022,-926.88,0.0003041,120]
[380346626,1755699554081,-767.1,0.0003041,120]
[380346627,1755699554142,-564.13,0.0003041,120]
[380346628,1755699554207,-400.0,0.0003041,120]
[380346629,1755699554265,-2000.15,0.0003041,120]
[380346630,1755699554321,-400.0,0.0003041,120]
[380346631,1755699554378,-400.0,0.0003041,120]
[380346632,1755699554436,-400.0,0.0003041,120]
[380346633,1755699554494,-799.45,0.0003041,120]
[380346634,1755699554551,-2187.32,0.0003041,120]
[380346635,1755699554608,-1076.6,0.0003041,120]
[380346636,1755699554668,-536.99,0.0003041,120]
[380346637,1755699554727,-751.88,0.0003041,120]
[380346638,1755699554789,-1328.72,0.0003041,120]
[380346639,1755699554847,-400.0,0.0003041,120]
[380346640,1755699554909,-1148.76,0.0003041,120]
[380346641,1755699554969,-1494.72,0.0003041,120]
[380346642,1755699555030,-404.76,0.0003041,120]
[380346643,1755699555091,-400.0,0.0003041,120]
[380346644,1755699555151,-400.0,0.0003041,120]
[380346645,1755699555225,-400.0,0.0003041,120]
[380346646,1755699555287,-400.0,0.0003041,120]
[380346647,1755699555348,-1058.61,0.0003041,120]
[380346648,1755699555409,-1386.89,0.0003041,120]
[380346649,1755699555465,-1646.87,0.0003041,120]
[380346650,1755699555520,-2723.13,0.0003041,120]
[380346651,1755699555787,-474.75,0.0003041,120]
[380346652,1755699555847,-400.0,0.0003041,120]
[380346653,1755699555902,-1728.92,0.0003041,120]
[380346654,1755699555967,-584.18,0.0003041,120]
[380346655,1755699556023,-400.0,0.0003041,120]
[380346656,1755699556081,-854.28,0.0003041,120]
[380346657,1755699556155,-400.0,0.0003041,120]
[380346658,1755699556217,-995.32,0.0003041,120]
[380346659,1755699556274,-412.77,0.0003041,120]
[380346660,1755699556329,-400.0,0.0003041,120]
[380346661,1755699556384,-2371.11,0.0003041,120]
[380346662,1755699556441,-593.61,0.0003041,120]
[380346663,1755699556495,-1348.14,0.0003041,120]
[380346664,1755699556551,-1518.03,0.0003041,120]
[380346665,1755699556611,-400.0,0.0003041,120]
[380346666,1755699556672,-932.74,0.0003041,120]
[380346667,1755699556729,-1505.34,0.0003041,120]
[380346668,1755699556784,-3887.15,0.0003041,120]
[380346669,1755699556837,-1603.1,0.0003041,120]
[380346670,1755699556892,-400.0,0.0003041,120]
[380346671,1755699556947,-855.39,0.0003041,120]
[380346672,1755699557004,-454.29,0.0003041,120]
[380346673,1755699557064,-1227.98,0.0003041,120]
[380346674,1755699557124,-1770.22,0.0003041,120]
[380346675,1755699557186,-400.0,0.0003041,120]
[380346676,1755699557254,-1846.88,0.0003041,120]
[380346677,1755699557317,-400.0,0.0003041,120]
[380346678,1755699557378,-1018.87,0.0003041,120]
[380346679,1755699557440,-400.0,0.0003041,120]
[380346680,1755699557501,-401.22,0.0003041,120]
[380346681,1755699557560,-969.27,0.0003041,120]
[380346682,1755699557628,-1107.15,0.0003041,120]
[380346683,1755699557687,-1067.15,0.0003041,120]
[380346684,1755699557746,-1992.3,0.0003041,120]
[380346685,1755699557808,-1251.27,0.0003041,120]
[380346686,1755699557865,-2234.66,0.0003041,120]
[380346687,1755699557926,-2345.08,0.0003041,120]
[380346688,1755699557989,-1127.55,0.0003041,120]
[380346689,1755699558048,-1085.49,0.0003041,120]
[380346690,1755699558112,-1618.5,0.0003041,120]
[380346691,1755699558176,-735.12,0.0003041,120]
[380346692,1755699558234,-1241.09,0.0003041,120]
[380346693,1755699558292,-951.7,0.0003041,120]
[380346694,1755699558353,-400.0,0.0003041,120]
[380346695,1755699558423,-1407.8,0.0003041,120]
[380346696,1755699558484,-1632.67,0.0003041,120]
[380346697,1755699558543,-400.0,0.0003041,120]
[380346698,1755699558603,-967.05,0.0003041,120]
[380346699,1755699558663,-400.0,0.0003041,120]
[380346700,1755699558730,-781.39,0.0003041,120]
[380346701,1755699558791,-882.97,0.0003041,120]
[380346702,1755699558848,-1450.1,0.0003041,120]
[380346703,1755699558904,-1493.04,0.0003041,120]
[380346704,1755699558965,-400.0,0.0003041,120]
[380346705,1755699559023,-400.0,0.0003041,120]
[380346706,1755699559084,-1704.53,0.0003041,120]
[380346707,1755699559144,-924.44,0.0003041,120]
[380346708,1755699559205,-1879.06,0.0003041,120]
[380346709,1755699559271,-1785.39,0.0003041,120]
[380346710,1755699559337,-1472.77,0.0003041,120]
[380346711,1755699559407,-2137.88,0.0003041,120]
[380346712,1755699559481,-400.0,0.0003041,120]
[380346713,1755699559555,-403.21,0.0003041,120]
[380346714,1755699559630,-421.96844718,0.0003041,120]
[380346715,1755699559699,-912.77,0.0003041,120]
[380346716,1755699559768,-1677.65,0.0003041,120]
[380346717,1755699559835,-1704.36,0.0003041,120]
[380346718,1755699559906,-400.0,0.0003041,120]
[380346719,1755699559977,-760.52,0.0003041,120]
[380346720,1755699560046,-2113.31,0.0003041,120]
[380346721,1755699560113,-1053.75,0.0003041,120]
[380346722,1755699560179,-1297.51,0.0003041,120]
[380346723,1755699560244,-1805.11,0.0003041,120]
[380346724,1755699560307,-400.0,0.0003041,120]
[380346725,1755699560367,-3168.16,0.0003041,120]
[380346726,1755699560429,-400.0,0.0003041,120]
[380346727,1755699560503,-704.27,0.0003041,120]
[380346728,1755699560583,-400.0,0.0003041,120]
[380346729,1755699560670,-2346.14,0.0003041,120]
[380346730,1755699560744,-473.28,0.0003041,120]
[380346731,1755699560822,-400.0,0.0003041,120]
[380346732,1755699560900,-400.0,0.0003041,120]
[380346733,1755699560981,-400.0,0.0003041,120]
[380346734,1755699561060,-1577.98,0.0003041,120]
[380346735,1755699561148,-215.56744896,0.0003041,120]
[380346736,1755699561223,-1520.14,0.0003041,120]
[380346737,1755699561299,-400.0,0.0003041,120]
[380346738,1755699561378,-516.38,0.0003041,120]
[380346739,1755699561454,-643.82,0.0003041,120]
[380346740,1755699561528,-1227.74,0.0003041,120]
[380346741,1755699561609,-400.0,0.0003041,120]
[380346742,1755699561692,-1690.81,0.0003041,120]
[380346743,1755699561765,-1768.11,0.0003041,120]
[380346744,1755699562049,-1021.71,0.0003041,120]
[380346745,1755699562128,-400.0,0.0003041,120]
[380346746,1755699562199,-400.0,0.0003041,120]
[380346747,1755699562270,-400.0,0.0003041,120]
[380346748,1755699562342,-946.32,0.0003041,120]
[380346749,1755699562411,-678.65,0.0003041,120]
[380346750,1755699562484,-400.0,0.0003041,120]
[380346751,1755699562552,-400.0,0.0003041,120]
[380346752,1755699562621,-1601.63,0.0003041,120]
[380346753,1755699562690,-1480.61,0.0003041,120]
[380346754,1755699562759,-538.48,0.0003041,120]
[380346755,1755699562825,-981.64,0.0003041,120]
[380346756,1755699564774,-1068.84,0.0003041,120]
[380346757,1755699564832,-902.25,0.0003041,120]
[380346758,1755699564900,-1715.93,0.0003041,120]
[380346759,1755699564968,-1690.03,0.0003041,120]
[380346760,1755699565055,-1251.26,0.0003041,120]
[380346761,1755699565116,-2498.11,0.0003041,120]
[380346762,1755699565178,-1559.47,0.0003041,120]
[380346763,1755699565240,-400.0,0.0003041,120]
[380346764,1755699565298,-2205.73,0.0003041,120]
[380346765,1755699565354,-1578.9,0.0003041,120]
[380346766,1755699565410,-731.53,0.0003041,120]
[380346767,1755699565470,-400.0,0.0003041,120]
[380346768,1755699565531,-1371.45,0.0003041,120]
[380346769,1755699565589,-1453.6,0.0003041,120]
[380346770,1755699565650,-400.0,0.0003041,120]
[380346771,1755699565707,-4054.97,0.0003041,120]
[380346772,1755699565764,-2432.64,0.0003041,120]
[380346773,1755699565820,-2010.64,0.0003041,120]
[380346774,1755699565875,-429.04,0.0003041,120]
[380346775,1755699565933,-5178.03,0.0003041,120]
[380346776,1755699565993,-774.66,0.0003041,120]
[380346777,1755699566056,-400.0,0.0003041,120]
[380346778,1755699566121,-542.42,0.0003041,120]
[380346779,1755699566185,-1614.52,0.0003041,120]
[380346780,1755699566245,-2166.67,0.0003041,120]
[380346781,1755699566302,-400.0,0.0003041,120]
[380346782,1755699566360,-1124.14,0.0003041,120]
[380346783,1755699566420,-3653.88,0.0003041,120]
[380346784,1755699566481,-400.0,0.0003041,120]
[380346785,1755699566538,-400.0,0.0003041,120]
[380346786,1755699566592,-400.0,0.0003041,120]
[380346787,1755699566650,-2336.51,0.0003041,120]
[380346788,1755699566716,-400.0,0.0003041,120]
[380346789,1755699566777,-1584.86,0.0003041,120]
[380346790,1755699566831,-1816.23,0.0003041,120]
[380346791,1755699566886,-478.8,0.0003041,120]
[380346792,1755699566941,-1153.39,0.0003041,120]
[380346793,1755699566996,-400.0,0.0003041,120]
[380346794,1755699567065,-961.98,0.0003041,120]
[380346795,1755699567135,-641.34,0.0003041,120]
[380346796,1755699567194,-400.0,0.0003041,120]
[380346797,1755699567253,-1077.76,0.0003041,120]
[380346798,1755699567316,-1499.36,0.0003041,120]
[380346799,1755699567380,-1194.11,0.0003041,120]
[380346800,1755699567450,-2050.78,0.0003041,120]
[380346801,1755699567510,-400.0,0.0003041,120]
[380346802,1755699567569,-2040.52,0.0003041,120]
[380346803,1755699567627,-1668.37,0.0003041,120]
[380346804,1755699567684,-400.0,0.0003041,120]
[380346805,1755699567744,-1790.34,0.0003041,120]
[380346806,1755699567800,-400.0,0.0003041,120]
[380346807,1755699567859,-1436.18,0.0003041,120]
[380346808,1755699567915,-442.45,0.0003041,120]
[380346809,1755699568186,-400.0,0.0003041,120]
[380346810,1755699568250,-1484.06,0.0003041,120]
[380346811,1755699568310,-1796.72,0.0003041,120]
[380346812,1755699568368,-5260.83,0.0003041,120]
[380346813,1755699568426,-1300.03,0.0003041,120]
[380346814,1755699568484,-450.99,0.0003041,120]
[380346815,1755699568541,-952.02,0.0003041,120]
[380346816,1755699568601,-400.0,0.0003041,120]
[380346817,1755699568657,-483.64,0.0003041,120]
[380346818,1755699568717,-660.56,0.0003041,120]
[380346819,1755699568777,-3154.11,0.0003041,120]
[380346820,1755699568836,-1652.37,0.0003041,120]
[380346821,1755699568900,-288.19071,0.0003041,120]
[380346822,1755699568964,-927.36,0.0003041,120]
[380346823,1755699569023,-1931.63,0.0003041,120]
[380346824,1755699569093,-719.84,0.0003041,120]
[380346825,1755699569154,-1395.89,0.0003041,120]
[380346826,1755699569215,-400.0,0.0003041,120]
[380346827,1755699569270,-528.91,0.0003041,120]
[380346828,1755699569327,-400.0,0.0003041,120]
[380346829,1755699569383,-400.0,0.0003041,120]
[380346830,1755699569439,-1560.2,0.0003041,120]
[380346831,1755699569493,-1119.58,0.0003041,120]
[380346832,1755699569690,-400.0,0.0003041,120]
[380346833,1755699569744,-590.25,0.0003041,120]
[380346834,1755699569800,-1548.22,0.0003041,120]
[380346835,1755699569858,-1343.1,0.0003041,120]
[380346836,1755699569915,-779.84,0.0003041,120]
[380346837,1755699569982,-1333.1,0.0003041,120]
[380346838,1755699570045,-1553.77,0.0003041,120]
[380346839,1755699570109,-1708.51,0.0003041,118]
[380346840,1755699570166,-400.0,0.0003041,120]
[380346841,1755699570226,-400.0,0.0003041,120]
[380346842,1755699570280,-1590.68,0.0003041,120]
[380346843,1755699570336,-4329.87,0.0003041,120]
[380346844,1755699570395,-400.0,0.0003041,120]
[380346845,1755699570455,-400.0,0.0003041,120]
[380346846,1755699570513,-1064.03,0.0003041,120]
[380346847,1755699570574,-400.0,0.0003041,120]
[380346848,1755699570636,-827.66,0.0003041,120]
[380346849,1755699570698,-1348.34,0.0003041,60]
[380346850,1755699570759,-365.69555976,0.0003041,120]
[380346851,1755699570817,-1270.73,0.0003041,120]
[380346852,1755699570875,-873.29,0.0003041,120]
[380346853,1755699570940,-1581.38,0.0003041,120]
[380346854,1755699571000,-1460.35,0.0003041,120]
[380346855,1755699571063,-2840.68,0.0003041,120]
[380346856,1755699571121,-400.0,0.0003041,120]
[380346857,1755699571181,-1277.58,0.0003041,120]
[380346858,1755699571247,-5067.21,0.0003041,120]
[380346859,1755699571303,-1300.77,0.0003041,120]
[380346860,1755699571359,-400.0,0.0003041,120]
[380346861,1755699571413,-1056.24,0.0003041,120]
[380346862,1755699571468,-400.0,0.0003041,120]
[380346863,1755699571520,-400.0,0.0003041,120]
[380346864,1755699571573,-400.0,0.0003041,120]
[380346865,1755699571629,-4945.2,0.0003041,120]
[380346866,1755699571680,-2221.13,0.0003041,120]
[380346867,1755699571734,-400.0,0.0003041,120]
[380346868,1755699571786,-2341.73,0.0003041,120]
[380346869,1755699571841,-400.0,0.0003041,120]
[380346870,1755699571896,-400.0,0.0003041,120]
[380346871,1755699571948,-573.83,0.0003041,120]
[380346872,1755699572003,-1644.15,0.0003041,120]
[380346873,1755699572057,-400.0,0.0003041,120]
[380346874,1755699572111,-690.23,0.0003041,120]
[380346875,1755699572175,-1294.05,0.0003041,120]
[380346876,1755699572238,-400.0,0.0003041,120]
[380346877,1755699572290,-1051.17,0.0003041,120]
[380346878,1755699572343,-3344.29,0.0003041,120]
[380346879,1755699572395,-400.0,0.0003041,120]
[380346880,1755699572448,-1054.91,0.0003041,120]
[380346881,1755699572506,-1449.34,0.0003041,120]
[380346882,1755699572558,-400.0,0.0003041,120]
[380346883,1755699572612,-1040.04,0.0003041,120]
[380346884,1755699572664,-1139.91,0.0003041,120]
[380346885,1755699572716,-400.0,0.0003041,120]
[380346886,1755699572768,-2133.86,0.0003041,120]
[380346887,1755699572818,-400.0,0.0003041,120]
[380346888,1755699572868,-1438.47,0.0003041,120]
[380346889,1755699572926,-1684.08,0.0003041,120]
[380346890,1755699572981,-1767.27,0.0003041,120]
[380346891,1755699573039,-471.68,0.0003041,120]
[380346892,1755699573096,-958.58,0.0003041,120]
[380346893,1755699573156,-1836.32,0.0003041,120]
[380346894,1755699573217,-1652.67,0.0003041,120]
[380346895,1755699573279,-6181.74,0.0003041,120]
[380346896,1755699573348,-527.7,0.0003041,120]
[380346897,1755699573408,-1725.69,0.0003041,120]
[380346898,1755699573470,-1386.55,0.0003041,120]
[380346899,1755699573531,-1179.32,0.0003041,120]
[380346900,1755699573597,-2273.29,0.0003041,120]
[380346901,1755699573666,-1620.21,0.0003041,120]
[380346902,1755699573729,-467.83,0.0003041,120]
[380346903,1755699573786,-400.0,0.0003041,120]
[380346904,1755699573844,-2740.17,0.0003041,120]
[380346905,1755699573904,-892.86,0.0003041,120]
[380346906,1755699573961,-400.0,0.0003041,120]
[380346907,1755699574017,-1123.75,0.0003041,120]
[380346908,1755699574075,-1778.01,0.0003041,120]
[380346909,1755699574133,-2096.35,0.0003041,120]
[380346910,1755699574196,-2813.55,0.0003041,120]
[380346911,1755699574256,-400.0,0.0003041,120]
[380346912,1755699574317,-665.47,0.0003041,120]
[380346913,1755699574377,-1502.1,0.0003041,120]
[380346914,1755699574435,-400.0,0.0003041,120]
[380346915,1755699574493,-1665.3,0.0003041,120]
[380346916,1755699574551,-2068.19,0.0003041,120]
[380346917,1755699574608,-914.06,0.0003041,120]
[380346918,1755699574667,-1067.23,0.0003041,120]
[380346919,1755699574726,-1313.65,0.0003041,120]
[380346920,1755699574788,-2132.55,0.0003041,120]
[380346921,1755699574845,-2060.53,0.0003041,120]
[380346922,1755699574901,-2477.56,0.0003041,120]
[380346923,1755699574960,-560.46,0.0003041,120]
[380346924,1755699575022,-400.0,0.0003041,120]
[380346925,1755699575082,-926.58,0.0003041,120]
[380346926,1755699575144,-716.0,0.0003041,120]
[380346927,1755699575205,-1296.11,0.0003041,120]
[380346928,1755699575271,-2521.95,0.0003041,120]
[380346929,1755699575339,-450.21,0.0003041,120]
[380346930,1755699575408,-1424.59,0.0003041,120]
[380346931,1755699575483,-1194.36,0.0003041,120]
[380346932,1755699575553,-1433.2,0.0003041,120]
[380346933,1755699575617,-651.79,0.0003041,120]
[380346934,1755699575691,-1456.23,0.0003041,120]
[380346935,1755699575759,-1490.38,0.0003041,120]
[380346936,1755699575820,-2253.76,0.0003041,120]
[380346937,1755699575890,-713.38,0.0003041,120]
[380346938,1755699575955,-1544.17,0.0003041,120]
[380346939,1755699576022,-6177.17,0.0003041,120]
[380346940,1755699576088,-1756.81,0.0003041,120]
[380346941,1755699576153,-400.0,0.0003041,120]
[380346942,1755699576217,-1667.31,0.0003041,120]
[380346943,1755699576279,-2017.39,0.0003041,120]
[380346944,1755699576336,-1834.51,0.0003041,120]
[380346945,1755699576396,-1657.64,0.0003041,120]
[380346946,1755699576458,-507.67,0.0003041,120]
[380346947,1755699576520,-2190.54,0.0003041,120]
[380346948,1755699576583,-1883.14,0.0003041,120]
[380346949,1755699576904,-400.0,0.0003041,120]
[380346950,1755699576986,-1683.37,0.0003041,120]
[380346951,1755699577050,-1189.82,0.0003041,120]
[380346952,1755699577114,-2522.44,0.0003041,120]
[380346953,1755699577181,-1508.85,0.0003041,120]
[380346954,1755699577247,-1731.93,0.0003041,120]
[380346955,1755699577311,-400.0,0.0003041,120]
[380346956,1755699577374,-648.74,0.0003041,120]
[380346957,1755699577445,-1011.18,0.0003041,120]
[380346958,1755699577507,-1488.05,0.0003041,120]
[380346959,1755699577567,-3364.73,0.0003041,120]
[380346960,1755699577627,-2004.55,0.0003041,120]
[380346961,1755699577690,-400.0,0.0003041,120]
[380346962,1755699577750,-1172.98,0.0003041,120]
[380346963,1755699577811,-1428.7,0.0003041,120]
[380346964,1755699577871,-1826.69,0.0003041,120]
[380346965,1755699577934,-730.04,0.0003041,120]
[380346966,1755699577992,-1546.17,0.0003041,120]
[380346967,1755699578054,-400.0,0.0003041,120]
[380346968,1755699578115,-400.0,0.0003041,120]
[380346969,1755699578181,-1335.09,0.0003041,120]
[380346970,1755699578243,-400.0,0.0003041,120]
[380346971,1755699578320,-1854.27,0.0003041,120]
[380346972,1755699578383,-544.36,0.0003041,120]
[380346973,1755699578445,-1527.64,0.0003041,120]
[380346974,1755699578514,-532.57,0.0003041,120]
[380346975,1755699578577,-569.6,0.0003041,120]
[380346976,1755699578643,-2413.44,0.0003041,120]
[380346977,1755699578704,-400.0,0.0003041,120]
[380346978,1755699578763,-400.0,0.0003041,120]
[380346979,1755699578822,-1023.62,0.0003041,120]
[380346980,1755699578883,-730.1,0.0003041,120]
[380346981,1755699578942,-400.0,0.0003041,120]
[380346982,1755699579003,-400.0,0.0003041,120]
[380346983,1755699579069,-1599.99,0.0003041,120]
[380346984,1755699579130,-894.95,0.0003041,120]
[380346985,1755699579190,-2827.42,0.0003041,120]
[380346986,1755699579251,-1062.01,0.0003041,120]
[380346987,1755699579314,-2542.89,0.0003041,120]
[380346988,1755699579377,-2336.33,0.0003041,120]